fUSD/lending_fUSD_20250901
["ID","MTS","AMOUNT","RATE_DAILY","PERIOD"]
[382629393,1756687840917,-2201.51101534,0.00036314,2]
[382629395,1756687840926,-153.46,0.00036339,2]
[382629397,1756687840935,-166.68,0.00036359,2]
[382629399,1756687840945,-3500.0,0.0003636,5]
[382629401,1756687840955,-3500.0,0.0003636,5]
[382629403,1756687840966,-812.75544213,0.00036397,120]
[382629405,1756687840976,-1000.0,0.00036448,7]
[382629407,1756687840987,-150.0,0.00036458,7]
[382629409,1756687840996,-678.22577,0.00036488,30]
[382629411,1756687841007,-30434.65945264,0.00036521,2]
[382629413,1756687841016,-1000.0,0.00036559,7]
[382629415,1756687841026,-169.97,0.00036614,30]
[382629417,1756687841036,-411.66156508,0.00036636,2]
[382629419,1756687841051,-342.46451182,0.0003668,15]
[382629421,1756687841061,-678.22577,0.00036688,30]
[382629423,1756687841071,-1007.4500091,0.00036768,5]
[382629426,1756687841081,-30434.65945264,0.00036845,2]
[382629428,1756687841091,-834.0,0.0003685,2]
[382629430,1756687841101,-500.0,0.00036873,5]
[382629433,1756687841110,-500.0,0.00036873,5]
[382629435,1756687841120,-500.0,0.00036873,5]
[382629437,1756687841130,-448.47712136,0.00036873,2]
[382629439,1756687841140,-2260.7525,0.00036888,7]
[382629441,1756687841149,-678.22577,0.00036888,30]
[382629443,1756687841159,-329.48757917,0.00036896,2]
[382629445,1756687841169,-1959.78,0.000369,14]
[382629447,1756687841179,-2762.97003045,0.00036908,5]
[382629449,1756687841188,-4000.0,0.00036908,5]
[382629450,1756687841199,-1235.15858032,0.00036917,9]
[382629453,1756687841209,-150.0,0.00036959,7]
[382629454,1756687841219,-160.0,0.00037,45]
[382629456,1756687841228,-152.83,0.00037004,2]
[382629458,1756687841239,-469.83,0.00037014,2]
[382629461,1756687841249,-800.49,0.00037014,2]
[382629463,1756687841258,-800.49,0.00037014,2]
[382629465,1756687841268,-469.83,0.00037014,2]
[382629467,1756687841279,-469.83,0.00037014,2]
[382629469,1756687841288,-800.49,0.00037014,2]
[382629471,1756687841298,-469.83,0.00037014,2]
[382629473,1756687841308,-800.49,0.00037014,2]
[382629474,1756687841318,-469.83,0.00037014,2]
[382629476,1756687841327,-800.49,0.00037014,2]
[382629478,1756687841338,-469.83,0.00037014,2]
[382629480,1756687841347,-800.49,0.00037014,2]
[382629481,1756687841356,-800.49,0.00037014,2]
[382629483,1756687841366,-469.83,0.00037014,2]
[382629485,1756687841375,-800.49,0.00037014,2]
[382629487,1756687841384,-469.83,0.00037014,2]
[382629488,1756687841394,-469.83,0.00037014,2]
[382629499,1756687841524,-800.49,0.00037014,2]
[382629501,1756687841535,-3204.0,0.00037017,120]
[382629503,1756687841544,-15356.95790779,0.00037033,2]
[382629504,1756687841554,-150.0,0.00037057,2]
[382629506,1756687841563,-342.46451182,0.0003706,15]
[382629508,1756687841572,-1000.0,0.00037066,7]
[382629510,1756687841582,-678.22577,0.00037088,30]
[382629512,1756687841591,-150.0,0.00037125,7]
[382629513,1756687841601,-30434.65945264,0.00037169,2]
[382629515,1756687841610,-1425.0,0.00037209,2]
[382629517,1756687841619,-1000.0,0.00037209,7]
[382629518,1756687841629,-3204.0,0.00037226,7]
[382629520,1756687841638,-411.66156508,0.00037226,2]
[382629522,1756687841647,-150.0,0.00037231,7]
[382629523,1756687841657,-150.0,0.00037235,7]
[382629525,1756687841666,-3204.0,0.00037243,7]
[382629527,1756687841675,-823.81425532,0.00037247,2]
[382629529,1756687841685,-1000.0,0.00037248,7]
[382629531,1756687841694,-150.0,0.00037259,2]
[382629532,1756687841703,-150.0,0.00037263,2]
[382629534,1756687841712,-678.22577,0.00037288,30]
[382629536,1756687841722,-461.6,0.000373,30]
[382629538,1756687841731,-150.0,0.0003732,7]
[382629540,1756687841745,-3204.0,0.00037334,2]
[382629541,1756687841754,-1402.80622355,0.0003738,2]
[382629543,1756687841763,-450.0,0.00037397,30]
[382629545,1756687841772,-150.0,0.00037397,30]
[382629547,1756687841781,-223.82,0.00037398,2]
[382629549,1756687841790,-200.0,0.000374,30]
[382629550,1756687841800,-200.0,0.000374,30]
[382629552,1756687841810,-823.81425532,0.00037405,2]
[382629554,1756687841819,-1000.0,0.00037421,5]
[382629556,1756687841829,-1004.14575712,0.00037421,5]
[382629558,1756687841839,-1000.0,0.00037421,5]
[382629560,1756687841848,-342.46451182,0.00037439,15]
[382629562,1756687841857,-150.0,0.00037449,7]
[382629563,1756687841867,-1425.0,0.00037455,2]
[382629565,1756687841876,-500.0,0.00037456,5]
[382629567,1756687841885,-410.07642527,0.00037459,2]
[382629569,1756687841895,-1000.0,0.0003746,7]
[382629571,1756687841904,-150.0,0.00037465,7]
[382629572,1756687841913,-150.0,0.00037468,7]
[382629574,1756687841923,-1500.0,0.00037473,5]
[382629576,1756687841932,-1425.0,0.00037484,2]
[382629578,1756687841941,-678.22577,0.00037488,30]
[382629580,1756687841950,-1425.0,0.0003749,2]
[382629581,1756687841960,-30434.65945264,0.00037493,2]
[382629583,1756687841969,-150.0,0.00037509,7]
[382629585,1756687841978,-34621.5733,0.00037512,2]
[382629587,1756687841989,-1153.3477,0.00037512,2]
[382629588,1756687841998,-269.1095,0.00037512,2]
[382629590,1756687842008,-1000.0,0.00037512,2]
[382629592,1756687842017,-5000.0,0.00037512,2]
[382629594,1756687842027,-150.0,0.00037517,7]
[382629596,1756687842036,-150.0,0.00037518,2]
[382629598,1756687842051,-1193.57746,0.0003753,2]
[382629600,1756687842061,-1425.0,0.00037534,2]
[382629601,1756687842070,-155.3461138,0.0003754,10]
[382629603,1756687842079,-283.48301718,0.00037573,5]
[382629605,1756687842089,-155.3461138,0.00037609,10]
[382629607,1756687842099,-3204.0,0.0003764,2]
[382629609,1756687842109,-500.0,0.00037673,5]
[382629610,1756687842119,-155.3461138,0.00037679,10]
[382629612,1756687842128,-150.0,0.0003768,2]
[382629614,1756687842139,-678.22577,0.00037688,30]
[382629616,1756687842151,-152.83,0.0003769,2]
[382629618,1756687842160,-1959.78,0.000377,14]
[382629619,1756687842170,-44618.04,0.000377,15]
[382629621,1756687842184,-823.81425533,0.00037724,2]
[382629623,1756687842194,-1000.0,0.00037732,7]
[382629624,1756687842203,-187.71707478,0.00037738,7]
[382629626,1756687842213,-150.0,0.00037743,2]
[382629628,1756687842223,-155.3461138,0.00037748,11]
[382629630,1756687842233,-1193.57747,0.0003775,2]
[382629632,1756687842247,-1425.0,0.00037764,2]
[382629634,1756687842273,-500.0,0.00037773,5]
[382629636,1756687842283,-500.0,0.00037773,5]
[382629637,1756687842292,-500.0,0.00037773,5]
[382629639,1756687842302,-500.0,0.00037773,5]
[382629641,1756687842311,-1425.0,0.00037783,2]
[382629643,1756687842320,-1425.0,0.00037801,2]
[382629644,1756687842331,-2302.4922938,0.00037803,2]
[382629646,1756687842344,-1478.40006985,0.00037811,2]
[382629648,1756687842356,-1478.40006981,0.00037812,2]
[382629650,1756687842367,-3028.94143125,0.00037813,2]
[382629652,1756687842377,-454.63168454,0.00037813,2]
[382629653,1756687842386,-188.85606701,0.00037813,7]
[382629655,1756687842395,-623.43003346,0.00037813,2]
[382629657,1756687842404,-1478.40006981,0.00037814,2]
[382629659,1756687842413,-454.63168453,0.00037815,2]
[382629661,1756687842422,-1478.40006981,0.00037815,2]
[382629662,1756687842432,-188.856067,0.00037816,7]
[382629664,1756687842441,-623.43003344,0.00037816,2]
[382629666,1756687842450,-1478.40006981,0.00037817,2]
[382629668,1756687842461,-155.3461138,0.00037817,11]
[382629670,1756687842470,-30434.65945264,0.00037817,2]
[382629671,1756687842480,-411.66156508,0.00037817,2]
[382629673,1756687842491,-454.63168453,0.00037817,2]
[382629675,1756687842501,-15356.95790779,0.00037817,2]
[382629677,1756687842510,-342.46451182,0.00037818,15]
[382629679,1756687842521,-188.856067,0.00037818,7]
[382629681,1756687842530,-623.43003344,0.00037818,2]
[382629682,1756687842540,-928.52987125,0.00037818,2]
[382629684,1756687842549,-1478.40006981,0.00037818,2]
[382629686,1756687842560,-216.05576754,0.00037821,2]
[382629688,1756687842570,-3667.0,0.00037827,5]
[382629690,1756687842579,-1080.48,0.00037881,2]
[382629691,1756687842589,-1240.28151938,0.00037885,2]
[382629693,1756687842598,-678.22577,0.00037888,30]
[382629695,1756687842608,-150.0,0.00037891,2]
[382629697,1756687842617,-1425.0,0.00037894,2]
[382629699,1756687842627,-5800.0,0.000379,2]
[382629700,1756687842637,-3982.77012657,0.000379,2]
[382629702,1756687842647,-2000.0,0.000379,30]
[382629704,1756687842656,-2000.0,0.000379,30]
[382629706,1756687842665,-2000.0,0.000379,30]
[382629707,1756687842675,-152.83,0.00037901,2]
[382629709,1756687842684,-152.83,0.00037901,2]
[382629711,1756687842693,-152.83,0.00037901,2]
[382629713,1756687842705,-152.83,0.00037902,2]
[382629715,1756687842716,-8774.7220241,0.00037911,2]
[382629717,1756687842725,-455655.5753649,0.00037911,2]
[382629718,1756687842736,-186677.9574071,0.00037911,2]
[382629720,1756687842747,-1000.0,0.00037911,5]
[382629722,1756687842756,-72754.3909158,0.00037911,2]
[382629724,1756687842765,-150.0,0.00037912,20]
[382629726,1756687842774,-151.0,0.00037912,3]
[382629727,1756687842783,-151.0,0.00037912,3]
[382629729,1756687842792,-156.587,0.00037912,3]
[382629731,1756687842802,-322.6107,0.00037912,3]
[382629733,1756687842812,-151.0,0.00037912,3]
[382629735,1756687842822,-162.380719,0.00037912,3]
[382629737,1756687842832,-334.5472959,0.00037912,3]
[382629738,1756687842842,-151.0,0.00037912,3]
[382629740,1756687842851,-168.3888056,0.00037912,3]
[382629742,1756687842860,-346.92554585,0.00037912,3]
[382629744,1756687842869,-174.61919141,0.00037912,3]
[382629745,1756687842879,-359.76179104,0.00037912,3]
[382629747,1756687842888,-373.07297731,0.00037912,3]
[382629749,1756687842897,-386.87667747,0.00037912,3]
[382629751,1756687842907,-721.12765535,0.00037912,3]
[382629753,1756687842916,-401.19111454,0.00037912,3]
[382629755,1756687842926,-151.0,0.00037912,3]
[382629756,1756687842935,-416.03518578,0.00037912,3]
[382629758,1756687842945,-9552.16786547,0.00037912,3]
[382629760,1756687842954,-151.0,0.00037912,3]
[382629762,1756687842964,-431.42848765,0.00037912,3]
[382629764,1756687842973,-9905.5980765,0.00037912,3]
[382629765,1756687842982,-151.0,0.00037912,3]
[382629767,1756687842995,-10272.10520533,0.00037912,3]
[382629769,1756687843005,-447.3913417,0.00037912,3]
[382629771,1756687843015,-151.0,0.00037912,3]
[382629773,1756687843025,-10652.17309792,0.00037912,3]
[382629775,1756687843036,-463.94482134,0.00037912,3]
[382629777,1756687843048,-151.0,0.00037912,3]
[382629778,1756687843057,-11046.30350255,0.00037912,3]
[382629780,1756687843067,-481.11077973,0.00037912,3]
[382629782,1756687843077,-11455.01673214,0.00037912,3]
[382629784,1756687843088,-151.0,0.00037912,3]
[382629786,1756687843098,-498.91187858,0.00037912,3]
[382629787,1756687843107,-200.0,0.00037912,3]
[382629789,1756687843118,-11878.85235123,0.00037912,3]
[382629791,1756687843128,-151.0,0.00037912,3]
[382629793,1756687843138,-517.37161808,0.00037912,3]
[382629795,1756687843147,-200.0,0.00037912,3]
[382629796,1756687843157,-7568.57209522,0.00037912,3]
[382629798,1756687843167,-151.0,0.00037912,3]
[382629801,1756687843176,-536.51436795,0.00037912,3]
[382629804,1756687843188,-200.0,0.00037912,3]
[382629806,1756687843197,-500.0,0.00037912,3]
[382629808,1756687843207,-151.0,0.00037912,3]
[382629810,1756687843217,-556.36539957,0.00037912,3]
[382629812,1756687843227,-200.0,0.00037912,3]
[382629814,1756687843238,-576.95091935,0.00037912,3]
[382629816,1756687843248,-200.0,0.00037912,3]
[382629819,1756687843257,-151.0,0.00037912,3]
[382629821,1756687843270,-598.29810337,0.00037912,3]
[382629822,1756687843279,-333.32539657,0.00037912,3]
[382629823,1756687843288,-151.0,0.00037912,3]
[382629824,1756687843298,-289.59944293,0.00037912,3]
[382629825,1756687843308,-600.0,0.00037912,3]
[382629826,1756687843317,-151.0,0.00037912,3]
[382629827,1756687843326,-151.0,0.00037912,3]
[382629828,1756687843343,-151.0,0.00037912,3]
[382629829,1756687843355,-747.8093786,0.00037912,3]
[382629830,1756687843364,-151.0,0.00037912,3]
[382629831,1756687843374,-151.0,0.00037912,3]
[382629832,1756687843383,-775.47832561,0.00037912,3]
[382629833,1756687843393,-151.0,0.00037912,3]
[382629834,1756687843402,-151.0,0.00037912,3]
[382629835,1756687843411,-804.17102365,0.00037912,3]
[382629836,1756687843420,-151.0,0.00037912,3]
[382629837,1756687843434,-833.92535153,0.00037912,3]
[382629838,1756687843445,-151.0,0.00037912,3]
[382629839,1756687843454,-151.0,0.00037912,3]
[382629840,1756687843463,-151.0,0.00037912,3]
[382629841,1756687843473,-864.78058953,0.00037912,3]
[382629842,1756687843482,-151.0,0.00037912,3]
[382629843,1756687843492,-896.77747135,0.00037912,3]
[382629844,1756687843502,-151.0,0.00037912,3]
[382629845,1756687843512,-151.0,0.00037912,3]
[382629846,1756687843521,-448.63148286,0.00037912,3]
[382629848,1756687843530,-151.0,0.00037912,3]
[382629849,1756687843540,-151.0,0.00037912,3]
[382629850,1756687843549,-151.0,0.00037912,3]
[382629852,1756687843558,-151.0,0.00037912,3]
[382629853,1756687843568,-151.0,0.00037912,3]
[382629855,1756687843577,-151.0,0.00037912,3]
[382629857,1756687843587,-151.0,0.00037912,3]
[382629859,1756687843596,-151.0,0.00037912,3]
[382629861,1756687843604,-151.0,0.00037912,3]
[382629863,1756687843614,-151.0,0.00037912,3]
[382629865,1756687843623,-151.0,0.00037912,3]
[382629867,1756687843633,-151.0,0.00037912,3]
[382629869,1756687843642,-209.40437684,0.00037912,3]
[382629871,1756687843652,-151.0,0.00037912,3]
[382629873,1756687843661,-151.0,0.00037912,3]
[382629875,1756687843670,-217.15233878,0.00037912,3]
[382629877,1756687843680,-151.0,0.00037912,3]
[382629879,1756687843689,-151.0,0.00037912,3]
[382629881,1756687843698,-225.18697532,0.00037912,3]
[382629883,1756687843707,-151.0,0.00037912,3]
[382629885,1756687843717,-151.0,0.00037912,3]
[382629887,1756687843726,-233.51889341,0.00037912,3]
[382629889,1756687843736,-151.0,0.00037912,3]
[382629891,1756687843746,-276.33054576,0.00037912,3]
[382629893,1756687843755,-242.15909246,0.00037912,3]
[382629895,1756687843766,-251.11897888,0.00037912,3]
[382629897,1756687843775,-260.4103811,0.00037912,3]
[382629899,1756687843784,-411.63036317,0.00037912,3]
[382629901,1756687843794,-200.0,0.00037912,3]
[382629903,1756687843803,-207.4,0.00037912,3]
[382629905,1756687843812,-215.0738,0.00037912,3]
[382629907,1756687843821,-200.87639391,0.00037912,3]
[382629909,1756687843830,-264.98765473,0.00037912,3]
[382629911,1756687843840,-600.0,0.00037912,3]
[382629913,1756687843850,-600.0,0.00037912,3]
[382629915,1756687843859,-389.73149871,0.00037912,3]
[382629917,1756687843869,-600.0,0.00037912,3]
[382629919,1756687843878,-600.0,0.00037912,3]
[382629921,1756687843887,-600.0,0.00037912,3]
[382629923,1756687843896,-600.0,0.00037912,3]
[382629925,1756687843905,-277.35679052,0.00037912,3]
[382629928,1756687843915,-600.0,0.00037912,3]
[382629930,1756687843924,-287.61899177,0.00037912,3]
[382629932,1756687843935,-600.0,0.00037912,3]
[382629934,1756687843944,-298.26089446,0.00037912,3]
[382629936,1756687843953,-600.0,0.00037912,3]
[382629938,1756687843963,-309.29654756,0.00037912,3]
[382629940,1756687843972,-320.74051982,0.00037912,3]
[382629942,1756687843982,-332.60791905,0.00037912,3]
[382629944,1756687843994,-344.91441206,0.00037912,3]
[382629946,1756687844004,-357.6762453,0.00037912,3]
[382629948,1756687844013,-500.0,0.00037912,3]
[382629950,1756687844022,-370.91026638,0.00037912,3]
[382629952,1756687844032,-500.0,0.00037912,3]
[382629954,1756687844046,-384.63394623,0.00037912,3]
[382629956,1756687844056,-500.0,0.00037912,3]
[382629958,1756687844065,-398.86540225,0.00037912,3]
[382629960,1756687844074,-500.0,0.00037912,3]
[382629962,1756687844085,-500.0,0.00037912,3]
[382629964,1756687844094,-500.0,0.00037912,3]
[382629966,1756687844103,-500.0,0.00037912,3]
[382629968,1756687844114,-500.0,0.00037912,3]
[382629970,1756687844124,-500.0,0.00037912,3]
[382629972,1756687844134,-500.0,0.00037912,3]
[382629974,1756687844145,-500.0,0.00037912,3]
[382629976,1756687844154,-500.0,0.00037912,3]
[382629978,1756687844163,-500.0,0.00037912,3]
[382629980,1756687844172,-500.0,0.00037912,3]
[382629982,1756687844182,-500.0,0.00037912,3]
[382629984,1756687844191,-500.0,0.00037912,3]
[382629986,1756687844200,-500.0,0.00037912,3]
[382629988,1756687844209,-500.0,0.00037912,3]
[382629990,1756687844219,-500.0,0.00037912,3]
[382629992,1756687844228,-500.0,0.00037912,3]
[382629994,1756687844239,-500.0,0.00037912,3]
[382629996,1756687844250,-500.0,0.00037912,3]
[382629998,1756687844258,-1706.7275037,0.00037913,2]
[382630000,1756687844268,-351788.83682759,0.00037913,2]
[382630002,1756687844277,-351788.83682759,0.00037913,2]
[382630004,1756687844286,-351788.83682759,0.00037913,2]
[382630006,1756687844295,-351788.83682759,0.00037913,2]
[382630008,1756687844304,-1931.02369193,0.00037913,2]
[382630010,1756687844313,-200.0,0.00037913,2]
[382630012,1756687844323,-200.0,0.00037913,2]
[382630014,1756687844332,-200.0,0.00037913,2]
[382630016,1756687844341,-154.0,0.00037913,30]
[382630018,1756687844350,-1193.57747,0.00037913,2]
[382630020,1756687844360,-200.0,0.00037913,2]
[382630022,1756687844370,-5772.2181181,0.00037913,2]
[382630024,1756687844378,-154.0,0.00037913,30]
[382630026,1756687844388,-1706.7275037,0.00037914,2]
[382630028,1756687844396,-1706.7275037,0.00037914,2]
[382630030,1756687844406,-189.44568546,0.00037914,2]
[382630032,1756687844415,-300.0,0.00037916,10]
[382630034,1756687844425,-216.6676505,0.00037916,2]
[382630036,1756687844434,-150.0,0.00037916,2]
[382630038,1756687844444,-150.0,0.00037916,2]
[382630040,1756687844454,-150.0,0.00037916,2]
[382630042,1756687844464,-150.0,0.00037916,2]
[382630044,1756687844474,-150.0,0.00037916,2]
[382630046,1756687844483,-151.0,0.00037917,2]
[382630048,1756687844496,-151.0,0.00037917,2]
[382630050,1756687844505,-151.0,0.00037917,30]
[382630052,1756687844517,-151.0,0.00037917,30]
[382630054,1756687844526,-151.0,0.00037917,30]
[382630056,1756687844535,-151.0,0.00037917,30]
[382630058,1756687844545,-151.0,0.00037917,30]
[382630060,1756687844554,-173.254613,0.00037917,30]
[382630062,1756687844563,-151.0,0.00037917,30]
[382630064,1756687844573,-151.0,0.00037917,30]
[382630066,1756687844582,-151.0,0.00037917,30]
[382630068,1756687844591,-151.0,0.00037917,30]
[382630070,1756687844600,-151.0,0.00037917,30]
[382630072,1756687844609,-151.0,0.00037917,30]
[382630074,1756687844618,-151.0,0.00037917,30]
[382630076,1756687844627,-151.0,0.00037917,30]
[382630078,1756687844636,-151.0,0.00037917,30]
[382630080,1756687844645,-151.0,0.00037917,30]
[382630082,1756687844654,-151.0,0.00037917,30]
[382630084,1756687844664,-151.0,0.00037917,30]
[382630086,1756687844673,-151.0,0.00037917,30]
[382630088,1756687844682,-155.050492,0.00037917,30]
[382630090,1756687844692,-181.687305,0.00037917,30]
[382630092,1756687844702,-151.0,0.00037917,30]
[382630094,1756687844712,-151.0,0.00037917,30]
[382630096,1756687844721,-151.0,0.00037917,30]
[382630097,1756687844732,-151.0,0.00037917,30]
[382630099,1756687844744,-151.0,0.00037917,30]
[382630101,1756687844754,-154.356582,0.00037917,30]
[382630104,1756687844764,-151.0,0.00037917,30]
[382630106,1756687844775,-151.0,0.00037917,30]
[382630108,1756687844784,-151.0,0.00037917,30]
[382630110,1756687844793,-151.0,0.00037917,30]
[382630112,1756687844803,-219.281185,0.00037917,30]
[382630114,1756687844812,-151.0,0.00037917,30]
[382630116,1756687844820,-151.0,0.00037917,30]
[382630118,1756687844830,-151.0,0.00037917,30]
[382630120,1756687844839,-151.0,0.00037917,30]
[382630122,1756687844848,-151.0,0.00037917,30]
[382630124,1756687844858,-151.0,0.00037917,30]
[382630126,1756687844867,-151.0,0.00037917,30]
[382630128,1756687844877,-151.0,0.00037917,30]
[382630130,1756687844887,-151.0,0.00037917,30]
[382630132,1756687844895,-151.0,0.00037917,30]
[382630134,1756687844905,-288.041772,0.00037917,30]
[382630136,1756687844914,-151.0,0.00037917,30]
[382630138,1756687844924,-151.0,0.00037917,30]
[382630140,1756687844933,-151.0,0.00037917,30]
[382630142,1756687844942,-151.0,0.00037917,30]
[382630144,1756687844951,-151.0,0.00037917,30]
[382630146,1756687844960,-151.0,0.00037917,30]
[382630148,1756687844969,-151.0,0.00037917,30]
[382630150,1756687844979,-151.0,0.00037917,30]
[382630152,1756687844989,-151.0,0.00037917,30]
[382630154,1756687844999,-151.0,0.00037917,30]
[382630156,1756687845007,-151.0,0.00037917,30]
[382630158,1756687845016,-151.0,0.00037917,30]
[382630160,1756687845024,-151.0,0.00037917,30]
[382630162,1756687845033,-151.0,0.00037917,30]
[382630164,1756687845045,-151.0,0.00037917,30]
[382630166,1756687845054,-151.0,0.00037917,30]
[382630168,1756687845064,-151.0,0.00037917,30]
[382630170,1756687845073,-151.0,0.00037917,30]
[382630172,1756687845083,-151.0,0.00037917,30]
[382630174,1756687845092,-151.0,0.00037917,30]
[382630176,1756687845101,-151.0,0.00037917,30]
[382630178,1756687845110,-151.0,0.00037917,30]
[382630180,1756687845120,-151.0,0.00037917,30]
[382630182,1756687845129,-151.0,0.00037917,30]
[382630184,1756687845139,-151.0,0.00037917,30]
[382630185,1756687845148,-151.0,0.00037917,30]
[382630187,1756687845157,-151.0,0.00037917,30]
[382630189,1756687845166,-155.196949,0.00037917,30]
[382630191,1756687845175,-151.0,0.00037917,30]
[382630193,1756687845184,-151.0,0.00037917,30]
[382630195,1756687845194,-151.0,0.00037917,30]
[382630197,1756687845204,-151.0,0.00037917,30]
[382630200,1756687845214,-151.0,0.00037917,30]
[382630201,1756687845223,-151.0,0.00037917,30]
[382630203,1756687845232,-151.0,0.00037917,30]
[382630206,1756687845245,-151.0,0.00037917,30]
[382630208,1756687845254,-151.0,0.00037917,30]
[382630210,1756687845263,-151.0,0.00037917,30]
[382630211,1756687845273,-151.0,0.00037917,30]
[382630213,1756687845281,-151.0,0.00037917,30]
[382630215,1756687845290,-151.0,0.00037917,30]
[382630217,1756687845299,-151.0,0.00037917,30]
[382630219,1756687845308,-151.827219,0.00037917,30]
[382630221,1756687845317,-151.0,0.00037917,30]
[382630223,1756687845326,-151.0,0.00037917,30]
[382630225,1756687845336,-151.0,0.00037917,30]
[382630227,1756687845345,-152.173756,0.00037917,30]
[382630229,1756687845354,-151.0,0.00037917,30]
[382630232,1756687845365,-151.0,0.00037917,30]
[382630234,1756687845373,-151.0,0.00037917,30]
[382630236,1756687845383,-151.0,0.00037917,30]
[382630238,1756687845393,-151.0,0.00037917,30]
[382630240,1756687845402,-151.0,0.00037917,30]
[382630242,1756687845411,-236.977908,0.00037917,30]
[382630244,1756687845420,-151.0,0.00037917,30]
[382630246,1756687845430,-151.0,0.00037917,30]
[382630248,1756687845439,-236.977908,0.00037917,30]
[382630250,1756687845449,-236.977908,0.00037917,30]
[382630252,1756687845458,-389.322352,0.00037917,2]
[382630254,1756687845467,-389.322352,0.00037917,2]
[382630256,1756687845478,-151.0,0.00037917,30]
[382630258,1756687845488,-181.304168,0.00037917,30]
[382630260,1756687845498,-389.322352,0.00037917,2]
[382630262,1756687845507,-389.322352,0.00037917,2]
[382630264,1756687845516,-389.322352,0.00037917,2]
[382630266,1756687845526,-389.322352,0.00037917,2]
[382630268,1756687845535,-389.322352,0.00037917,2]
[382630270,1756687845545,-389.322352,0.00037917,2]
[382630272,1756687845554,-151.0,0.00037917,30]
[382630274,1756687845564,-151.0,0.00037917,30]
[382630276,1756687845573,-151.0,0.00037917,30]
[382630278,1756687845582,-151.0,0.00037917,30]
[382630280,1756687845591,-151.0,0.00037917,30]
[382630282,1756687845600,-151.0,0.00037917,30]
[382630284,1756687845610,-151.0,0.00037917,30]
[382630286,1756687845619,-151.0,0.00037917,30]
[382630288,1756687845628,-151.0,0.00037917,30]
[382630290,1756687845638,-151.0,0.00037917,30]
[382630309,1756687845779,-151.0,0.00037917,30]
[382630313,1756687845827,-151.0,0.00037917,30]
[382630315,1756687845837,-151.0,0.00037917,30]
[382630317,1756687845847,-255.105424,0.00037917,30]
[382630319,1756687845856,-151.0,0.00037917,30]
[382630321,1756687845866,-151.0,0.00037917,30]
[382630323,1756687845875,-352.397553,0.00037917,30]
[382630325,1756687845884,-352.397553,0.00037917,30]
[382630327,1756687845893,-352.397553,0.00037917,30]
[382630329,1756687845902,-352.397553,0.00037917,30]
[382630331,1756687845911,-413.350843,0.00037917,30]
[382630333,1756687845920,-352.397553,0.00037917,30]
[382630335,1756687845930,-413.350843,0.00037917,30]
[382630337,1756687845939,-352.397553,0.00037917,30]
[382630339,1756687845949,-413.350843,0.00037917,30]
[382630341,1756687845958,-352.397553,0.00037917,30]
[382630343,1756687845967,-413.350843,0.00037917,30]
[382630345,1756687845976,-352.397553,0.00037917,30]
[382630347,1756687845986,-413.350843,0.00037917,30]
[382630349,1756687845997,-313.471202,0.00037917,30]
[382630351,1756687846007,-413.350843,0.00037917,30]
[382630353,1756687846017,-313.471202,0.00037917,30]
[382630356,1756687846026,-413.350843,0.00037917,30]
[382630358,1756687846036,-413.350843,0.00037917,30]
[382630360,1756687846050,-313.471202,0.00037917,30]
[382630362,1756687846059,-313.471202,0.00037917,30]